fUST/lending_fUST_20241231
["ID","MTS","AMOUNT","RATE_DAILY","PERIOD"]
[347214560,1735581045359,-877.53118936,0.00014548,2]
[347214561,1735581045370,-205.89268959,0.00014548,2]
[347214562,1735581045382,-150.14,0.00014548,2]
[347214563,1735581045394,-531.09218538,0.00014548,2]
[347214564,1735581045405,-953.92331481,0.00014548,2]
[347214565,1735581045417,-193.004138,0.00014561,2]
[347214566,1735581045431,-193.004146,0.00014561,2]
[347214567,1735581045443,-2500.0,0.00014575,2]
[347214568,1735581045455,-150.218896,0.000146,2]
[347214569,1735581045467,-221.3122692,0.00014658,2]
[347214570,1735581045478,-372.9716164,0.00014658,2]
[347214572,1735581045490,-151.0,0.00014794,2]
[347214573,1735581045501,-151.0,0.00014794,2]
[347214574,1735581045513,-459.365852,0.00014794,2]
[347214575,1735581045524,-459.365862,0.00014794,2]
[347214576,1735581045538,-500.0,0.00014794,2]
[347214577,1735581045549,-500.0,0.00014794,2]
[347214578,1735581045560,-2578.66,0.00014794,2]
[347214580,1735581045569,-250.44604665,0.00014822,2]
[347214581,1735581045579,-652.0,0.00014822,2]
[347214582,1735581045588,-500.0,0.00014822,2]
[347214583,1735581045597,-150.14,0.00014822,2]
[347214584,1735581045606,-465.2028011,0.00014873,2]
[347214585,1735581045615,-429.55030567,0.000149,2]
[347214586,1735581045625,-429.55030567,0.000149,2]
[347214587,1735581045634,-429.55030567,0.000149,2]
[347214588,1735581045644,-600.0,0.00014992,2]
[347214589,1735581045653,-12950.84341469,0.00015,7]
[347214591,1735581045663,-16321.22253294,0.00015,2]
[347214592,1735581045929,-500.0,0.00014,2]
[347214593,1735581045939,-500.0,0.00014274,2]
[347214594,1735581045949,-527.09892359,0.00014548,2]
[347214595,1735581045958,-97.58230671,0.00015,2]
[347214596,1735581045969,-36601.19516035,0.00015,2]
[347214597,1735581045979,-1000.0,0.00015,15]
[347214598,1735581045988,-1000.0,0.00015,2]
[347214599,1735581045998,-904.17,0.00015,2]
[347214600,1735581046007,-500.0,0.00015,2]
[347214601,1735581046016,-313.825382,0.00015,2]
[347214602,1735581046025,-313.825382,0.00015,2]
[347214603,1735581046034,-346.197811,0.00015,2]
[347214604,1735581046043,-346.197811,0.00015,2]
[347214605,1735581046052,-151.0,0.00015,2]
[347214606,1735581046064,-151.0,0.00015,2]
[347214607,1735581046073,-151.0,0.00015,2]
[347214608,1735581046082,-151.0,0.00015,2]
[347214609,1735581046092,-151.0,0.00015,2]
[347214610,1735581046101,-210.938352,0.00015,2]
[347214611,1735581046110,-210.938342,0.00015,2]
[347214612,1735581046119,-153.43081,0.00015,2]
[347214613,1735581046128,-153.430802,0.00015,2]
[347214614,1735581046138,-2707.398892,0.00015,2]
[347214615,1735581046147,-2707.398892,0.00015,2]
[347214616,1735581046157,-478.092112,0.00015,2]
[347214617,1735581046167,-478.092112,0.00015,2]
[347214618,1735581046175,-151.0,0.00015,2]
[347214619,1735581046185,-151.0,0.00015,2]
[347214620,1735581046194,-811.061619,0.00015,2]
[347214621,1735581046203,-811.061619,0.00015,2]
[347214622,1735581046212,-156.432825,0.00015,2]
[347214623,1735581046221,-156.432825,0.00015,2]
[347214624,1735581046230,-205.659253,0.00015,2]
[347214625,1735581046240,-205.659253,0.00015,2]
[347214626,1735581046249,-500.0,0.00015068,2]
[347214627,1735581046258,-500.0,0.00015068,2]
[347214628,1735581046267,-2578.66,0.00015068,2]
[347214629,1735581046276,-652.0,0.00015096,2]
[347214630,1735581046285,-500.0,0.00015096,2]
[347214631,1735581046294,-150.14,0.00015096,2]
[347214632,1735581046303,-151.0,0.00015096,2]
[347214634,1735581046313,-2500.0,0.00015106,2]
[347214636,1735581046322,-600.0,0.00015148,2]
[347214637,1735581046331,-7826.32482765,0.00015212,2]
[347214638,1735581046341,-151.0,0.00015212,2]
[347214639,1735581046350,-500.0,0.00015274,2]
[347214640,1735581046359,-600.0,0.00015305,2]
[347214641,1735581046368,-314.248223,0.00015331,2]
[347214642,1735581046378,-314.248223,0.00015331,2]
[347214643,1735581046387,-500.0,0.00015342,2]
[347214644,1735581046396,-500.0,0.00015342,2]
[347214645,1735581046406,-2578.66,0.00015342,2]
[347214646,1735581046415,-652.0,0.0001537,2]
[347214647,1735581046425,-500.0,0.0001537,2]
[347214648,1735581046434,-249.3,0.0001537,2]
[347214649,1735581046444,-534.33186589,0.00015461,2]
[347214650,1735581046456,-69.10122446,0.00015461,2]
[347214651,1735581046466,-704.8189398,0.00015507,2]
[347214652,1735581046475,-704.6473112,0.00015507,2]
[347214653,1735581046484,-500.05727885,0.00015522,2]
[347214654,1735581046493,-517.6212351,0.00015548,2]
[347214655,1735581046502,-457.4108577,0.00015562,2]
[347214656,1735581046511,-263.537179,0.000156,5]
[347214657,1735581046520,-150.0,0.000156,2]
[347214658,1735581046529,-541.4173,0.000156,2]
[347214659,1735581046538,-151.0,0.00015616,2]
[347214661,1735581046547,-151.0,0.00015616,2]
[347214663,1735581046556,-500.0,0.00015616,2]
[347214665,1735581046567,-500.0,0.00015616,2]
[347214667,1735581046576,-2578.66,0.00015616,2]
[347214669,1735581046585,-2500.0,0.00015637,2]
[347214670,1735581046595,-652.0,0.00015644,2]
[347214672,1735581046604,-500.0,0.00015644,2]
[347214673,1735581046613,-346.197811,0.0001589,2]
[347214674,1735581046623,-346.197811,0.0001589,2]
[347214676,1735581046632,-151.0,0.0001589,2]
[347214678,1735581046642,-192.4165556,0.0001589,2]
[347214679,1735581046651,-500.0,0.0001589,2]
[347214681,1735581046661,-2578.66,0.0001589,2]
[347214683,1735581046670,-652.0,0.00015918,2]
[347214685,1735581046682,-500.0,0.00015918,2]
[347214686,1735581046692,-1249.68766469,0.00015998,2]
[347214687,1735581046701,-9283.63303355,0.00016,2]
[347214688,1735581046710,-1000.0,0.00016,16]
[347214689,1735581046719,-631.32867669,0.00016,5]
[347214690,1735581046729,-151.0,0.00016,2]
[347214691,1735581046739,-10000.0,0.00016,4]
[347214692,1735581046749,-151.0,0.00016,2]
[347214693,1735581046759,-151.0,0.00016,2]
[347214694,1735581046768,-285.33,0.00016105,2]
[347214695,1735581046778,-500.0,0.00016164,2]
[347214696,1735581046790,-2578.66,0.00016164,2]
[347214697,1735581046800,-2500.0,0.00016169,2]
[347214698,1735581046812,-652.0,0.00016192,2]
[347214699,1735581046823,-832.34011129,0.00016192,2]
[347214700,1735581046833,-204.361037,0.00016192,2]
[347214701,1735581046843,-204.361037,0.00016192,2]
[347214702,1735581046852,-214.3641981,0.00016329,2]
[347214703,1735581046862,-153.5340186,0.00016329,2]
[347214704,1735581046872,-214.3641981,0.00016329,2]
[347214705,1735581046881,-153.5340186,0.00016329,2]
[347214706,1735581046890,-153.5340186,0.00016329,2]
[347214707,1735581046900,-214.3641981,0.00016329,2]
[347214708,1735581046910,-214.3641981,0.00016329,2]
[347214709,1735581046919,-153.5340186,0.00016329,2]
[347214710,1735581046929,-214.3641981,0.00016329,2]
[347214711,1735581046939,-153.5340186,0.00016329,2]
[347214712,1735581046948,-214.3641981,0.00016329,2]
[347214713,1735581046958,-153.5340186,0.00016329,2]
[347214714,1735581046968,-153.5340186,0.00016329,2]
[347214715,1735581046978,-214.3641981,0.00016329,2]
[347214716,1735581046987,-153.5340186,0.00016329,2]
[347214717,1735581046997,-214.3641981,0.00016329,2]
[347214718,1735581047007,-314.248223,0.00016438,2]
[347214719,1735581047016,-314.248223,0.00016438,2]
[347214720,1735581047025,-151.0,0.00016438,2]
[347214721,1735581047035,-346.197811,0.00016438,2]
[347214722,1735581047045,-346.197811,0.00016438,2]
[347214723,1735581047055,-151.0,0.00016438,2]
[347214724,1735581047067,-500.0,0.00016438,2]
[347214725,1735581047076,-500.0,0.00016438,2]
[347214726,1735581047086,-500.0,0.00016438,2]
[347214727,1735581047095,-500.0,0.00016438,2]
[347214728,1735581047105,-500.0,0.00016438,2]
[347214729,1735581047114,-500.0,0.00016438,2]
[347214730,1735581047123,-500.0,0.00016438,2]
[347214731,1735581047132,-500.0,0.00016438,2]
[347214732,1735581047142,-500.0,0.00016438,2]
[347214733,1735581047151,-500.0,0.00016438,2]
[347214734,1735581047160,-500.0,0.00016438,2]
[347214735,1735581047169,-500.0,0.00016438,2]
[347214736,1735581047178,-500.0,0.00016438,2]
[347214737,1735581047188,-500.0,0.00016438,2]
[347214738,1735581047197,-500.0,0.00016438,2]
[347214739,1735581047206,-500.0,0.00016438,2]
[347214740,1735581047216,-500.0,0.00016438,2]
[347214741,1735581047226,-500.0,0.00016438,2]
[347214742,1735581047235,-500.0,0.00016438,2]
[347214743,1735581047244,-500.0,0.00016438,2]
[347214744,1735581047254,-500.0,0.00016438,2]
[347214745,1735581047263,-500.0,0.00016438,2]
[347214746,1735581047273,-500.0,0.00016438,2]
[347214747,1735581047282,-500.0,0.00016438,2]
[347214748,1735581047291,-500.0,0.00016438,2]
[347214749,1735581047301,-390.15451519,0.00016438,2]
[347214750,1735581047311,-500.0,0.00016438,2]
[347214751,1735581047321,-500.0,0.00016438,2]
[347214752,1735581047330,-500.0,0.00016438,2]
[347214753,1735581047340,-500.0,0.00016438,2]
[347214754,1735581047349,-500.0,0.00016438,2]
[347214755,1735581047359,-500.0,0.00016438,2]
[347214756,1735581047368,-500.0,0.00016438,2]
[347214757,1735581047377,-500.0,0.00016438,2]
[347214758,1735581047387,-500.0,0.00016438,2]
[347214759,1735581047396,-500.0,0.00016438,2]
[347214760,1735581047406,-500.0,0.00016438,2]
[347214761,1735581047415,-500.0,0.00016438,2]
[347214762,1735581047425,-500.0,0.00016438,2]
[347214763,1735581047435,-500.0,0.00016438,2]
[347214764,1735581047444,-500.0,0.00016438,2]
[347214765,1735581047453,-500.0,0.00016438,2]
[347214766,1735581047462,-500.0,0.00016438,2]
[347214767,1735581047472,-322.72209613,0.00016438,2]
[347214768,1735581047482,-500.0,0.00016438,2]
[347214769,1735581047492,-500.0,0.00016438,2]
[347214770,1735581047502,-500.0,0.00016438,2]
[347214771,1735581047511,-500.0,0.00016438,2]
[347214772,1735581047521,-500.0,0.00016438,2]
[347214773,1735581047531,-500.0,0.00016438,2]
[347214774,1735581047540,-500.0,0.00016438,2]
[347214775,1735581047550,-500.0,0.00016438,2]
[347214776,1735581047560,-500.0,0.00016438,2]
[347214777,1735581047570,-500.0,0.00016438,2]
[347214778,1735581047579,-500.0,0.00016438,2]
[347214779,1735581047588,-500.0,0.00016438,2]
[347214780,1735581047598,-500.0,0.00016438,2]
[347214781,1735581047607,-500.0,0.00016438,2]
[347214782,1735581047617,-500.0,0.00016438,2]
[347214783,1735581047627,-500.0,0.00016438,2]
[347214784,1735581047636,-500.0,0.00016438,2]
[347214785,1735581047646,-500.0,0.00016438,2]
[347214786,1735581047655,-500.0,0.00016438,2]
[347214787,1735581047665,-500.0,0.00016438,2]
[347214788,1735581047674,-500.0,0.00016438,2]
[347214789,1735581047684,-500.0,0.00016438,2]
[347214790,1735581047693,-500.0,0.00016438,2]
[347214791,1735581047703,-500.0,0.00016438,2]
[347214792,1735581047712,-500.0,0.00016438,2]
[347214793,1735581047722,-500.0,0.00016438,2]
[347214794,1735581047731,-500.0,0.00016438,2]
[347214795,1735581047741,-500.0,0.00016438,2]
[347214796,1735581047750,-500.0,0.00016438,2]
[347214797,1735581047760,-500.0,0.00016438,2]
[347214798,1735581047770,-500.0,0.00016438,2]
[347214799,1735581047780,-500.0,0.00016438,2]
[347214800,1735581047794,-500.0,0.00016438,2]
[347214801,1735581047804,-500.0,0.00016438,2]
[347214802,1735581047813,-500.0,0.00016438,2]
[347214803,1735581047823,-500.0,0.00016438,2]
[347214804,1735581047834,-500.0,0.00016438,2]
[347214805,1735581047843,-500.0,0.00016438,2]
[347214806,1735581047852,-500.0,0.00016438,2]
[347214807,1735581047862,-500.0,0.00016438,2]
[347214808,1735581047871,-500.0,0.00016438,2]
[347214809,1735581047881,-450.0,0.00016438,2]
[347214810,1735581047891,-500.0,0.00016438,2]
[347214811,1735581047901,-500.0,0.00016438,2]
[347214812,1735581047910,-500.0,0.00016438,2]
[347214813,1735581047920,-500.0,0.00016438,2]
[347214814,1735581047930,-500.0,0.00016438,2]
[347214815,1735581047939,-500.0,0.00016438,2]
[347214816,1735581047949,-500.0,0.00016438,2]
[347214817,1735581047958,-500.0,0.00016438,2]
[347214818,1735581047968,-500.0,0.00016438,2]
[347214819,1735581047978,-500.0,0.00016438,2]
[347214820,1735581047987,-500.0,0.00016438,2]
[347214821,1735581047996,-500.0,0.00016438,2]
[347214822,1735581048006,-500.0,0.00016438,2]
[347214823,1735581048015,-500.0,0.00016438,2]
[347214824,1735581048026,-500.0,0.00016438,2]
[347214825,1735581048036,-500.0,0.00016438,2]
[347214826,1735581048047,-500.0,0.00016438,2]
[347214827,1735581048056,-500.0,0.00016438,2]
[347214828,1735581048069,-191.41818503,0.00016438,2]
[347214829,1735581048079,-615.92,0.00016438,2]
[347214830,1735581048088,-500.0,0.00016438,2]
[347214831,1735581048098,-1028.3,0.00016438,2]
[347214832,1735581048108,-1028.3,0.00016438,2]
[347214833,1735581048117,-1028.3,0.00016438,2]
[347214834,1735581048127,-1028.3,0.00016438,2]
[347214835,1735581048137,-1028.3,0.00016438,2]
[347214836,1735581048232,-971.342352,0.00016438,2]
[347214837,1735581048241,-1028.3,0.00016438,2]
[347214838,1735581048250,-1028.3,0.00016438,2]
[347214839,1735581048259,-1028.3,0.00016438,2]
[347214840,1735581048269,-1028.3,0.00016438,2]
[347214841,1735581048278,-1028.3,0.00016438,2]
[347214842,1735581048287,-1028.3,0.00016438,2]
[347214843,1735581048297,-1028.3,0.00016438,2]
[347214844,1735581048306,-1028.3,0.00016438,2]
[347214845,1735581048317,-1028.3,0.00016438,2]
[347214846,1735581048327,-1028.3,0.00016438,2]
[347214847,1735581048336,-1028.3,0.00016438,2]
[347214848,1735581048344,-1028.3,0.00016438,2]
[347214849,1735581048354,-971.342352,0.00016438,2]
[347214850,1735581048363,-1028.3,0.00016438,2]
[347214851,1735581048373,-1028.3,0.00016438,2]
[347214852,1735581048383,-1028.3,0.00016438,2]
[347214853,1735581048392,-1028.3,0.00016438,2]
[347214854,1735581048402,-151.0,0.00016438,2]
[347214855,1735581048411,-559.050354,0.00016438,2]
[347214856,1735581048420,-559.050354,0.00016438,2]
[347214857,1735581048429,-151.0,0.00016438,2]
[347214858,1735581048438,-151.0,0.00016438,2]
[347214859,1735581048448,-200.0,0.00016438,2]
[347214860,1735581048458,-200.0,0.00016438,2]
[347214861,1735581048467,-200.0,0.00016438,2]
[347214862,1735581048476,-200.0,0.00016438,2]
[347214863,1735581048485,-200.0,0.00016438,2]
[347214864,1735581048495,-200.0,0.00016438,2]
[347214865,1735581048504,-200.0,0.00016438,2]
[347214866,1735581048513,-200.0,0.00016438,2]
[347214867,1735581048523,-200.0,0.00016438,2]
[347214868,1735581048532,-200.0,0.00016438,2]
[347214869,1735581048541,-200.0,0.00016438,2]
[347214870,1735581048551,-200.0,0.00016438,2]
[347214871,1735581048560,-200.0,0.00016438,2]
[347214872,1735581048572,-200.0,0.00016438,2]
[347214873,1735581048582,-200.0,0.00016438,2]
[347214874,1735581048591,-200.0,0.00016438,2]
[347214875,1735581048601,-200.0,0.00016438,2]
[347214876,1735581048611,-200.0,0.00016438,2]
[347214877,1735581048621,-200.0,0.00016438,2]
[347214878,1735581048632,-200.0,0.00016438,2]
[347214879,1735581048642,-229.69915582,0.00016438,2]
[347214880,1735581048652,-2578.66,0.00016438,2]
[347214881,1735581048662,-196.394491,0.00016438,2]
[347214882,1735581048671,-196.394491,0.00016438,2]
[347214883,1735581048681,-500.0,0.00016438,2]
[347214884,1735581048690,-500.0,0.00016438,2]
[347214885,1735581048699,-151.0,0.00016438,2]
[347214886,1735581048708,-151.0,0.00016438,2]
[347214887,1735581048718,-151.0,0.00016438,2]
[347214888,1735581048727,-151.0,0.00016438,2]
[347214889,1735581048736,-151.0,0.00016438,2]
[347214890,1735581048745,-287.842535,0.00016438,2]
[347214891,1735581048755,-313.825382,0.0001644,2]
[347214892,1735581048765,-313.825382,0.0001644,2]
[347214893,1735581048775,-314.248223,0.0001644,2]
[347214894,1735581048788,-151.0,0.0001644,2]
[347214895,1735581048798,-314.248223,0.0001644,2]
[347214896,1735581048807,-177.947304,0.0001644,2]
[347214897,1735581048821,-151.0,0.0001644,2]
[347214898,1735581048831,-346.197811,0.0001644,2]
[347214899,1735581048840,-346.197811,0.0001644,2]
[347214900,1735581048851,-346.197811,0.0001644,2]
[347214901,1735581048864,-346.197803,0.0001644,2]
[347214902,1735581048875,-151.0,0.0001644,2]
[347214903,1735581048885,-344.96386327,0.0001644,2]
[347214904,1735581049102,-500.0,0.00010958,2]
[347214905,1735581049112,-332.0685368,0.0001386,2]
[347214906,1735581049122,-153.5340186,0.00016329,2]
[347214907,1735581049129,-106.36960873,0.0001644,2]
[347214908,1735581049138,-230.63783437,0.0001644,2]
[347214909,1735581049316,-220.69563763,0.0001644,2]
[347214910,1735581049326,-213.932543,0.0001644,2]
[347214911,1735581049335,-213.932543,0.0001644,2]
[347214912,1735581049345,-754.913665,0.0001644,2]
[347214913,1735581049355,-754.913665,0.0001644,2]
[347214914,1735581049364,-392.178038,0.0001644,2]
[347214915,1735581049374,-714.466513,0.0001644,2]
[347214916,1735581049385,-392.178038,0.0001644,2]
[347214917,1735581049395,-714.466513,0.0001644,2]
[347214918,1735581049404,-151.584173,0.0001644,2]
[347214919,1735581049414,-377.47867137,0.0001644,2]
[347214920,1735581049425,-2329.92022063,0.0001644,2]
[347214921,1735581049435,-2707.398892,0.0001644,2]
[347214922,1735581049445,-820.008842,0.0001644,2]
[347214923,1735581049455,-820.008842,0.0001644,2]
[347214924,1735581049465,-151.0,0.0001644,2]
[347214925,1735581049474,-478.092112,0.0001644,2]
[347214926,1735581049484,-151.0,0.0001644,2]
[347214927,1735581049494,-478.092112,0.0001644,2]
[347214928,1735581049504,-151.0,0.0001644,2]
[347214929,1735581049513,-151.0,0.0001644,2]
[347214930,1735581049524,-811.061619,0.0001644,2]
[347214931,1735581049533,-811.061619,0.0001644,2]
[347214932,1735581049543,-156.432825,0.0001644,2]
[347214933,1735581049553,-156.432825,0.0001644,2]
[347214934,1735581049565,-205.659253,0.0001644,2]
[347214935,1735581049575,-205.659253,0.0001644,2]
[347214936,1735581049584,-1787.62325205,0.0001644,2]
[347214937,1735581049596,-1224.47003189,0.0001644,2]
[347214938,1735581049606,-3012.09328394,0.0001644,2]
[347214939,1735581049615,-3012.09328394,0.0001644,2]
[347214940,1735581049625,-3012.09328394,0.0001644,2]
[347214941,1735581049635,-3012.09328394,0.0001644,2]
[347214942,1735581049644,-3012.09328394,0.0001644,2]
[347214943,1735581049654,-1721.8441351,0.0001644,2]
[347214944,1735581049666,-1290.24914884,0.0001644,2]
[347214945,1735581049676,-3012.09328394,0.0001644,2]
[347214946,1735581049685,-3012.09328394,0.0001644,2]
[347214947,1735581049694,-2314.98170844,0.0001644,2]
[347214948,1735581049943,-185.06330268,0.00014,2]
[347214949,1735581049953,-150.14,0.00014,2]
[347214950,1735581049963,-163.73778479,0.00014274,2]
[347214951,1735581049972,-214.3641981,0.00016329,2]
[347214952,1735581049982,-697.1115755,0.0001644,2]
[347214953,1735581049991,-3012.09328394,0.0001644,2]
[347214954,1735581050000,-3012.09328394,0.0001644,2]
[347214955,1735581050010,-3012.09328394,0.0001644,2]
[347214956,1735581050020,-3012.09328394,0.0001644,2]
[347214957,1735581050029,-3012.09328394,0.0001644,2]
[347214958,1735581050039,-3012.09328394,0.0001644,2]
[347214959,1735581050049,-3012.09328394,0.0001644,2]
[347214960,1735581050059,-3012.09328394,0.0001644,2]
[347214961,1735581050073,-3012.09328394,0.0001644,2]
[347214962,1735581050084,-3012.09,0.0001644,2]
[347214963,1735581050093,-4518.13992591,0.0001644,2]
[347214964,1735581050103,-4518.13992591,0.0001644,2]
[347214965,1735581050112,-4518.13992591,0.0001644,2]
[347214966,1735581050122,-4518.13992591,0.0001644,2]
[347214967,1735581050131,-4518.13992591,0.0001644,2]
[347214968,1735581050140,-4518.13992591,0.0001644,2]
[347214969,1735581050149,-4518.13992591,0.0001644,2]
[347214970,1735581050159,-4518.13992591,0.0001644,2]
[347214971,1735581050169,-4518.13992591,0.0001644,2]
[347214972,1735581050178,-4518.13992591,0.0001644,2]
[347214973,1735581050188,-4518.13992591,0.0001644,2]
[347214974,1735581050198,-4518.13992591,0.0001644,2]
[347214975,1735581050208,-4518.13992591,0.0001644,2]
[347214976,1735581050217,-4518.13992591,0.0001644,2]
[347214977,1735581050227,-4518.13992591,0.0001644,2]
[347214978,1735581050236,-4518.13992591,0.0001644,2]
[347214979,1735581050247,-4518.13992591,0.0001644,2]
[347214980,1735581050258,-4518.13992591,0.0001644,2]
[347214981,1735581050268,-4518.13992591,0.0001644,2]
[347214982,1735581050279,-4518.13,0.0001644,2]
[347214983,1735581050289,-154.57168416,0.0001644,2]
[347214984,1735581050299,-154.57168416,0.0001644,2]
[347214985,1735581050309,-154.57168416,0.0001644,2]
[347214986,1735581050323,-154.57168416,0.0001644,2]
[347214987,1735581050332,-154.57168416,0.0001644,2]
[347214988,1735581050342,-154.57168416,0.0001644,2]
[347214989,1735581050351,-154.57168416,0.0001644,2]
[347214990,1735581050361,-154.57168416,0.0001644,2]
[347214991,1735581050372,-154.57168416,0.0001644,2]
[347214992,1735581050382,-154.57168416,0.0001644,2]
[347214993,1735581050391,-154.57168416,0.0001644,2]
[347214994,1735581050401,-154.57168416,0.0001644,2]
[347214995,1735581050410,-154.57168416,0.0001644,2]
[347214996,1735581050420,-154.57168416,0.0001644,2]
[347214997,1735581050430,-154.57168416,0.0001644,2]
[347214998,1735581050439,-154.57168416,0.0001644,2]
[347214999,1735581050449,-154.57168416,0.0001644,2]
[347215000,1735581050459,-154.57168416,0.0001644,2]
[347215001,1735581050551,-154.57,0.0001644,2]
[347215002,1735581050561,-220.26464993,0.0001644,2]
[347215003,1735581050575,-220.26464993,0.0001644,2]
[347215004,1735581050584,-220.26464993,0.0001644,2]
[347215005,1735581050594,-220.26464993,0.0001644,2]
[347215006,1735581050603,-220.26464993,0.0001644,2]
[347215007,1735581050611,-220.26464993,0.0001644,2]
[347215008,1735581050621,-220.26464993,0.0001644,2]
[347215009,1735581050631,-220.26464993,0.0001644,2]
[347215010,1735581050641,-220.26464993,0.0001644,2]
[347215011,1735581050650,-220.26464993,0.0001644,2]
[347215012,1735581050660,-220.26464993,0.0001644,2]
[347215013,1735581050670,-220.26464993,0.0001644,2]
[347215014,1735581050679,-220.26464993,0.0001644,2]
[347215015,1735581050689,-220.26464993,0.0001644,2]
[347215016,1735581050698,-220.26464993,0.0001644,2]
[347215017,1735581050707,-220.26464993,0.0001644,2]
[347215018,1735581050717,-220.26464993,0.0001644,2]
[347215019,1735581050726,-220.26464993,0.0001644,2]
[347215020,1735581050735,-220.26464993,0.0001644,2]
[347215021,1735581050745,-220.26,0.0001644,2]
[347215022,1735581050754,-377.20609707,0.00016473,2]
[347215023,1735581050764,-500.0,0.00016473,2]
[347215024,1735581050773,-151.0,0.00016473,2]
[347215025,1735581050784,-151.0,0.00016473,2]
[347215026,1735581050796,-9282.9658147,0.000165,2]
[347215027,1735581050809,-455.4460002,0.000165,2]
[347215028,1735581050826,-631.66000005,0.000165,2]
[347215029,1735581064944,2523.267277,0.00027397,120]
[347215034,1735581330759,778.93,0.0002779,120]
[347215035,1735581331325,470.3524372,0.0002899,120]
[347215036,1735581331347,308.5315628,0.0002899,120]
[347215043,1735581579068,273.04032612,0.0002899,120]
[347215061,1735581949059,200.0,0.0002779,120]
[347215062,1735581949087,513.981,0.0002779,120]
[347215066,1735582022421,413.668,0.00027397,120]
[347215088,1735582167562,-260.4073225,9.651e-05,2]
[347215089,1735582167588,-196.24264449,9.746e-05,2]
[347215090,1735582167614,-250.0,9.755e-05,2]
[347215091,1735582167640,-1009.48461143,0.00010063,2]
[347215092,1735582192583,-260.4073225,9.458e-05,2]
[347215093,1735582192609,-260.4073225,9.554e-05,2]
[347215094,1735582192634,-215.84528867,0.00010063,2]
[347215095,1735582192661,-205.68167271,0.00010248,2]
[347215116,1735582232871,-54.72564979,0.00010248,2]
[347215117,1735582232881,-641.58012617,0.00010858,2]
[347215118,1735582232896,-500.0,0.00010957,2]
[347215119,1735582232906,-500.0,0.00010957,2]
[347215120,1735582232916,-500.0,0.00010957,2]
[347215121,1735582232926,-226.79118771,0.00010957,2]
[347215122,1735582232936,-438.25337081,0.00010957,2]
[347215123,1735582232945,-500.0,0.00010958,2]
[347215124,1735582232955,-506.86880565,0.00010958,2]
[347215125,1735582232964,-502.44379707,0.00010958,2]
[347215126,1735582232973,-504.08015614,0.00010958,2]
[347215127,1735582232983,-400.0,0.00010958,2]
[347215128,1735582232993,-320.08754664,0.00010958,2]
[347215129,1735582233003,-500.0,0.00010958,2]
[347215130,1735582233013,-500.0,0.00010958,2]
[347215131,1735582233023,-500.0,0.00010958,2]
[347215132,1735582233034,-500.0,0.00010958,2]
[347215133,1735582233044,-500.0,0.00010958,2]
[347215134,1735582233054,-500.0,0.00010958,2]
[347215135,1735582233064,-500.0,0.00010958,2]
[347215136,1735582233075,-506.46164388,0.00010958,2]
[347215137,1735582233086,-500.0,0.00010958,2]
[347215139,1735582233096,-500.0,0.00010958,2]
[347215140,1735582233106,-500.0,0.00010958,2]
[347215141,1735582233116,-500.0,0.00010958,2]
[347215143,1735582233127,-499.68147212,0.00010958,2]
[347215144,1735582233140,-500.0,0.00010958,2]
[347215145,1735582233153,-500.0,0.00010958,2]
[347215146,1735582233169,-500.0,0.00010958,2]
[347215147,1735582233180,-500.0,0.00010958,2]
[347215148,1735582233192,-500.0,0.00010958,2]